fUST/lending_fUST_20241229
["ID","MTS","AMOUNT","RATE_DAILY","PERIOD"]
[346953457,1735422650310,-544.10194277,0.00019054,2]
[346953458,1735422650320,-500.0,0.00019054,2]
[346953459,1735422650333,-500.0,0.00019054,2]
[346953460,1735422650342,-773.56,0.00019054,2]
[346953461,1735422650352,-500.0,0.00019056,2]
[346953462,1735422650361,-500.0,0.00019056,2]
[346953463,1735422650372,-500.0,0.00019056,2]
[346953464,1735422650381,-464.8,0.00019056,2]
[346953465,1735422650390,-500.0,0.00019056,2]
[346953466,1735422650401,-500.0,0.00019056,2]
[346953467,1735422650411,-500.0,0.00019056,2]
[346953468,1735422650420,-500.0,0.00019056,2]
[346953469,1735422650430,-590.88,0.00019056,2]
[346953470,1735422650439,-374.33501921,0.00019056,2]
[346953471,1735422650449,-500.0,0.00019056,2]
[346953472,1735422650458,-265.86,0.00019056,2]
[346953473,1735422650468,-22410.15,0.00019056,2]
[346953474,1735422650477,-4263.43,0.00019056,2]
[346953475,1735422650487,-314.75,0.00019059,2]
[346953476,1735422650496,-436.31,0.00019059,2]
[346953477,1735422650506,-500.0,0.00019059,2]
[346953478,1735422650516,-445.66,0.00019059,2]
[346953479,1735422650525,-260.46,0.00019059,2]
[346953480,1735422650535,-500.0,0.00019059,2]
[346953481,1735422650544,-500.0,0.00019059,2]
[346953482,1735422650554,-500.0,0.00019059,2]
[346953483,1735422650564,-500.0,0.00019064,4]
[346953484,1735422650573,-1295.54,0.00019066,2]
[346953485,1735422650583,-754.48,0.00019067,2]
[346953486,1735422650592,-500.0,0.00019328,2]
[346953487,1735422650602,-500.0,0.00019328,2]
[346953488,1735422650612,-773.56,0.00019328,2]
[346953489,1735422650622,-500.0,0.0001933,2]
[346953490,1735422650631,-500.0,0.0001933,2]
[346953491,1735422650642,-500.0,0.0001933,2]
[346953492,1735422650652,-500.0,0.0001933,2]
[346953493,1735422650661,-500.0,0.0001933,2]
[346953494,1735422650671,-172.88,0.0001933,2]
[346953495,1735422650681,-500.0,0.0001933,2]
[346953496,1735422650691,-233.46,0.0001933,2]
[346953497,1735422650700,-22410.15,0.0001933,2]
[346953498,1735422650710,-4263.43,0.0001933,2]
[346953499,1735422650719,-500.0,0.00019333,2]
[346953500,1735422650729,-500.0,0.00019333,2]
[346953501,1735422650738,-572.32,0.00019333,2]
[346953502,1735422650748,-328.24,0.00019333,2]
[346953503,1735422650757,-1295.54,0.0001934,2]
[346953504,1735422650767,-787.29,0.00019341,2]
[346953505,1735422650776,-754.48,0.00019341,2]
[346953506,1735422650786,-640.87,0.0001956,2]
[346953507,1735422650795,-203.44,0.00019587,7]
[346953508,1735422650805,-500.0,0.00019602,2]
[346953509,1735422650814,-500.0,0.00019602,2]
[346953510,1735422650824,-773.56,0.00019602,2]
[346953511,1735422650833,-500.0,0.00019604,2]
[346953512,1735422650843,-500.0,0.00019604,2]
[346953513,1735422650853,-500.0,0.00019604,2]
[346953514,1735422650862,-500.0,0.00019604,2]
[346953515,1735422650872,-500.0,0.00019604,2]
[346953516,1735422650882,-252.94,0.00019604,2]
[346953517,1735422650893,-22410.15,0.00019604,2]
[346953518,1735422650902,-4263.43,0.00019604,2]
[346953519,1735422650912,-224.47,0.00019607,2]
[346953520,1735422650921,-500.0,0.00019607,2]
[346953521,1735422650931,-1295.54,0.00019614,2]
[346953522,1735422650941,-787.29,0.00019615,2]
[346953523,1735422650950,-754.48,0.00019615,2]
[346953524,1735422650960,-303.8781763,0.00019781,2]
[346953525,1735422650969,-544.10194277,0.00019787,2]
[346953526,1735422650979,-500.0,0.00019876,2]
[346953527,1735422650988,-305.02,0.00019876,2]
[346953528,1735422650998,-773.56,0.00019876,2]
[346953529,1735422651007,-500.0,0.00019878,2]
[346953530,1735422651017,-500.0,0.00019878,2]
[346953531,1735422651026,-409.53,0.00019878,2]
[346953532,1735422651035,-500.0,0.00019878,2]
[346953533,1735422651044,-500.0,0.00019878,2]
[346953534,1735422651054,-22410.15,0.00019878,2]
[346953535,1735422651063,-4263.43,0.00019878,2]
[346953536,1735422651072,-500.0,0.00019881,2]
[346953537,1735422651082,-1295.54,0.00019888,2]
[346953538,1735422651091,-787.29,0.00019889,2]
[346953539,1735422651100,-754.48,0.00019889,2]
[346953540,1735422651110,-161.0337573,0.0002,10]
[346953541,1735422651119,-151.0,0.0002,4]
[346953542,1735422651129,-500.0,0.0002015,2]
[346953543,1735422651139,-500.0,0.00020152,2]
[346953544,1735422651149,-258.68,0.00020152,2]
[346953545,1735422651158,-500.0,0.00020152,2]
[346953546,1735422651235,-500.0,0.00020152,2]
[346953547,1735422651245,-22410.15,0.00020152,2]
[346953548,1735422651254,-4263.43,0.00020152,2]
[346953549,1735422651264,-500.0,0.00020155,2]
[346953550,1735422651273,-1295.54,0.00020162,2]
[346953551,1735422651282,-787.29,0.00020163,2]
[346953552,1735422651291,-754.48,0.00020163,2]
[346953553,1735422651300,-499.0,0.00020273,2]
[346953554,1735422651309,-151.0,0.000203,4]
[346953555,1735422651318,-261.5591029,0.00020381,2]
[346953556,1735422651327,-500.0,0.00020424,2]
[346953557,1735422651336,-500.0,0.00020426,2]
[346953558,1735422651345,-493.66,0.00020426,2]
[346953559,1735422651354,-500.0,0.00020426,2]
[346953560,1735422651363,-22410.15,0.00020426,2]
[346953561,1735422651373,-4263.43,0.00020426,2]
[346953562,1735422651383,-500.0,0.00020429,2]
[346953563,1735422651392,-474.75809757,0.00020434,6]
[346953564,1735422651401,-1295.54,0.00020436,2]
[346953565,1735422651411,-787.29,0.00020437,2]
[346953566,1735422651420,-754.48,0.00020437,2]
[346953567,1735422651430,-400.0,0.00020447,2]
[346953568,1735422651439,-7118.34656363,0.00020456,2]
[346953569,1735422651449,-1197.30369208,0.00020491,2]
[346953570,1735422651459,-439.0,0.0002051,2]
[346953571,1735422651468,-544.10194277,0.00020519,2]
[346953572,1735422651478,-2711.32066189,0.00020519,2]
[346953573,1735422651487,-799.782141,0.00020521,2]
[346953574,1735422651497,-500.07959298,0.00020573,2]
[346953575,1735422651506,-199.58,0.00020587,10]
[346953576,1735422651515,-199.58,0.00020587,10]
[346953577,1735422651524,-150.23,0.00020587,10]
[346953578,1735422651534,-199.58,0.00020587,10]
[346953579,1735422651543,-8824.31,0.000206,2]
[346953580,1735422651552,-6359.13,0.000206,2]
[346953581,1735422651561,-2434.87,0.000206,2]
[346953582,1735422651571,-171.86341659,0.00020619,2]
[346953583,1735422651581,-2425.92562986,0.00020619,2]
[346953584,1735422651590,-1153711.26857184,0.00020619,10]
[346953610,1735423204577,164.89,0.000255,30]
[346953612,1735423370839,1205.556,0.000255,120]
[346953613,1735423468369,500.0,0.00020635,120]
[346953614,1735423485033,460.92762151,0.000255,30]
[346953615,1735423542142,-154.02112611,0.00013695,2]
[346953616,1735423542165,-154.02112611,0.00013833,2]
[346953617,1735423542186,-400.0,0.00013973,2]
[346953618,1735423542208,-586.04235908,0.00017582,2]
[346953619,1735423542232,-300.0,0.00017672,2]
[346953620,1735423542252,-500.0,0.00017673,2]
[346953621,1735423542275,-500.0,0.00017673,2]
[346953622,1735423542297,-117.84734387,0.00017673,2]
[346953624,1735423630094,-903.88187056,0.00017321,2]
[346953625,1735423630117,-775.08536016,0.00017496,2]
[346953626,1735423630147,-224.91463984,0.00017496,2]
[346953627,1735423630168,-200.8550033,0.00017576,2]
[346953628,1735423630190,-382.15265613,0.00017673,2]
[346953629,1735423630211,-511.91928225,0.00017673,2]
[346953630,1735423630231,-500.0,0.00017673,2]
[346953631,1735423630253,-500.0,0.00017673,2]
[346953632,1735423630274,-43.53107783,0.00017673,2]
[346953633,1735423637103,-456.46892217,0.00017673,2]
[346953634,1735423637125,-500.0,0.00017673,2]
[346953635,1735423637146,-449.93488074,0.00017673,2]
[346953636,1735423641102,-50.06511926,0.00017673,2]
[346953637,1735423641126,-500.0,0.00017673,2]
[346953638,1735423641148,-215.657,0.00017673,2]
[346953639,1735423641171,-281.34296402,0.00017675,2]
[346953640,1735423664197,500.0,0.000255,30]
[346953641,1735423664509,500.0,0.000255,30]
[346953642,1735423664917,500.0,0.000255,30]
[346953643,1735423665163,500.0,0.000255,30]
[346953644,1735423665547,276.10193637,0.000255,30]
[346953696,1735423831848,-468.83388724,0.00017579,2]
[346953698,1735423831858,-502.21108782,0.00017674,2]
[346953700,1735423831868,-502.21108782,0.00017674,2]
[346953702,1735423831877,-502.21108782,0.00017674,2]
[346953704,1735423831887,-502.21108782,0.00017674,2]
[346953706,1735423831896,-502.21108782,0.00017674,2]
[346953708,1735423831906,-130.81451135,0.00017674,2]
[346953710,1735423831918,-371.39657647,0.00017674,2]
[346953712,1735423831930,-502.21108782,0.00017674,2]
[346953714,1735423831939,-502.21108782,0.00017674,2]
[346953716,1735423831949,-502.21108782,0.00017674,2]
[346953718,1735423831958,-502.21108782,0.00017674,2]
[346953720,1735423831967,-502.21108782,0.00017674,2]
[346953721,1735423831976,-502.21108782,0.00017674,2]
[346953723,1735423831985,-502.21108782,0.00017674,2]
[346953725,1735423831994,-502.21108782,0.00017674,2]
[346953727,1735423832003,-502.21108782,0.00017674,2]
[346953729,1735423832012,-179.79065339,0.00017674,2]
[346953791,1735423837781,-500.0,0.00017674,2]
[346953792,1735423837790,-55.255,0.00017675,2]
[346953793,1735423837801,-444.745,0.00017675,2]
[346953794,1735423837810,-715.73,0.00017675,2]
[346953795,1735423837819,-500.0,0.00017675,2]
[346953796,1735423837829,-500.0,0.00017675,2]
[346953797,1735423837838,-500.0,0.00017675,2]
[346953798,1735423837847,-500.0,0.00017675,2]
[346953799,1735423837856,-500.0,0.00017675,2]
[346953800,1735423837865,-500.0,0.00017675,2]
[346953801,1735423837875,-1733.68,0.00017675,2]
[346953802,1735423837884,-500.0,0.00017675,2]
[346953803,1735423837893,-195.55429113,0.00017675,2]
[346953804,1735423837902,-500.0,0.00017675,2]
[346953805,1735423837912,-295.76777103,0.00017675,2]
[346953806,1735423837921,-641.01,0.00017676,2]
[346953807,1735423837933,-500.0,0.00017676,2]
[346953808,1735423837942,-500.0,0.00017676,2]
[346953809,1735423837952,-500.0,0.00017676,2]
[346953810,1735423837962,-500.0,0.00017676,2]
[346953811,1735423837972,-314.51293784,0.00017676,2]
[346953812,1735423837984,-185.48706216,0.00017676,2]
[346953813,1735423837994,-500.0,0.00017676,2]
[346953814,1735423838004,-752.02,0.00017676,2]
[346953815,1735423838013,-500.0,0.00017676,2]
[346953816,1735423838024,-500.0,0.00017676,2]
[346953817,1735423838034,-500.0,0.00017676,2]
[346953818,1735423838043,-500.0,0.00017676,2]
[346953819,1735423838053,-500.0,0.00017676,2]
[346953820,1735423838062,-500.0,0.00017676,2]
[346953821,1735423838071,-500.0,0.00017676,2]
[346953822,1735423838080,-500.0,0.00017676,2]
[346953823,1735423838090,-384.04627416,0.00017676,2]
[346953824,1735423838108,-115.95372584,0.00017676,2]
[346953825,1735423838118,-192.7113688,0.00017676,2]
[346953830,1735423839868,-500.0,0.00017675,2]
[346953831,1735423839878,-307.2886312,0.00017676,2]
[346953832,1735423839888,-500.0,0.00017676,2]
[346953833,1735423839897,-500.0,0.00017676,2]
[346953834,1735423839906,-500.0,0.00017676,2]
[346953835,1735423839917,-243.87093159,0.00017676,2]
[346953836,1735423839929,-256.12906841,0.00017676,2]
[346953837,1735423839941,-325.91696267,0.00017676,2]
[346953838,1735423839958,-174.08303733,0.00017676,2]
[346953839,1735423839967,-6180.64300414,0.00017676,2]
[346953853,1735423842793,-2200.0,0.00017676,2]
[346953855,1735423842805,-2467.96,0.00017676,2]
[346953856,1735423842873,-1290.22699586,0.00017676,2]
[346953857,1735423842883,-500.0,0.00017678,2]
[346953858,1735423842892,-500.0,0.00017678,2]
[346953859,1735423842901,-500.0,0.00017678,2]
[346953860,1735423842910,-500.0,0.00017678,2]
[346953861,1735423842920,-500.0,0.00017678,2]
[346953862,1735423842929,-500.0,0.00017678,2]
[346953863,1735423842941,-500.0,0.00017678,2]
[346953864,1735423842950,-500.0,0.00017678,2]
[346953865,1735423842959,-500.0,0.00017678,2]
[346953866,1735423842969,-500.0,0.00017678,2]
[346953867,1735423842979,-556.18725913,0.00017678,2]
[346953868,1735423842987,-500.0,0.00017678,2]
[346953869,1735423842997,-500.0,0.00017678,2]
[346953870,1735423843006,-500.0,0.00017678,2]
[346953871,1735423843017,-500.0,0.00017678,2]
[346953872,1735423843027,-335.45204202,0.00017678,2]
[346953873,1735423843036,-500.0,0.00017678,2]
[346953874,1735423843046,-504.69397731,0.00017678,2]
[346953875,1735423843057,-500.0,0.00017678,2]
[346953876,1735423843066,-500.0,0.00017678,2]
[346953877,1735423843075,-500.0,0.00017678,2]
[346953878,1735423843084,-500.0,0.00017678,2]
[346953879,1735423843093,-500.0,0.00017678,2]
[346953880,1735423843103,-500.0,0.00017678,2]
[346953881,1735423843112,-500.0,0.00017678,2]
[346953882,1735423843121,-500.0,0.00017678,2]
[346953883,1735423843131,-500.0,0.00017678,2]
[346953884,1735423843141,-500.0,0.00017678,2]
[346953885,1735423843150,-500.0,0.00017678,2]
[346953886,1735423843160,-500.0,0.00017678,2]
[346953887,1735423843169,-500.0,0.00017678,2]
[346953888,1735423843179,-500.0,0.00017678,2]
[346953889,1735423843188,-500.0,0.00017678,2]
[346953890,1735423843198,-500.0,0.00017678,2]
[346953891,1735423843209,-580.42098436,0.00017678,2]
[346953892,1735423843222,-500.0,0.00017678,2]
[346953893,1735423843235,-500.0,0.00017678,2]
[346953894,1735423843248,-500.0,0.00017678,2]
[346953895,1735423843261,-500.0,0.00017678,2]
[346953896,1735423843273,-500.0,0.00017678,2]
[346953897,1735423843283,-500.0,0.00017678,2]
[346953898,1735423843295,-500.0,0.00017678,2]
[346953899,1735423843307,-500.0,0.00017678,2]
[346953900,1735423843319,-500.0,0.00017678,2]
[346953901,1735423843331,-500.0,0.00017678,2]
[346953902,1735423843343,-500.0,0.00017678,2]
[346953903,1735423843356,-10047.38,0.00017678,2]
[346953904,1735423843367,-552.32105813,0.00017678,2]
[346953905,1735423843379,-500.0,0.00017678,2]
[346953906,1735423843392,-500.0,0.00017678,2]
[346953907,1735423843405,-500.0,0.00017678,2]
[346953908,1735423843417,-500.0,0.00017678,2]
[346953909,1735423843429,-500.0,0.00017678,2]
[346953910,1735423843441,-500.0,0.00017678,2]
[346953911,1735423843452,-500.0,0.00017678,2]
[346953912,1735423843463,-500.0,0.00017678,2]
[346953913,1735423843475,-500.0,0.00017678,2]
[346953914,1735423843487,-500.0,0.00017678,2]
[346953915,1735423843498,-500.0,0.00017678,2]
[346953916,1735423843510,-500.0,0.00017678,2]
[346953917,1735423843520,-500.0,0.00017678,2]
[346953918,1735423843532,-500.0,0.00017678,2]
[346953919,1735423843543,-638.67,0.00017678,2]
[346953920,1735423843554,-500.0,0.00017678,2]
[346953921,1735423843566,-500.0,0.00017678,2]
[346953922,1735423843578,-500.0,0.00017678,2]
[346953923,1735423843590,-500.0,0.00017678,2]
[346953924,1735423843603,-500.0,0.00017678,2]
[346953925,1735423843616,-500.0,0.00017679,2]
[346953926,1735423843629,-500.0,0.00017679,2]
[346953927,1735423843641,-500.0,0.00017679,2]
[346953928,1735423843654,-500.0,0.00017679,2]
[346953929,1735423843666,-500.0,0.00017679,2]
[346953930,1735423843678,-500.0,0.00017679,2]
[346953931,1735423843688,-500.0,0.00017679,2]
[346953932,1735423843699,-500.0,0.00017679,2]
[346953933,1735423843708,-500.0,0.00017679,2]
[346953934,1735423843719,-500.0,0.00017679,2]
[346953935,1735423843731,-500.0,0.00017679,2]
[346953936,1735423843743,-500.0,0.00017679,2]
[346953937,1735423843755,-500.0,0.00017679,2]
[346953938,1735423843767,-500.0,0.00017679,2]
[346953939,1735423843778,-500.0,0.00017679,2]
[346953940,1735423843788,-500.0,0.00017679,2]
[346953941,1735423843799,-500.0,0.00017679,2]
[346953942,1735423843810,-500.0,0.00017679,2]
[346953943,1735423843820,-500.0,0.00017679,2]
[346953944,1735423843831,-500.0,0.00017679,2]
[346953945,1735423843843,-500.0,0.00017679,2]
[346953946,1735423843853,-500.0,0.00017679,2]
[346953947,1735423843863,-500.0,0.00017679,2]
[346953948,1735423843873,-500.0,0.00017679,2]
[346953949,1735423843883,-500.0,0.00017679,2]
[346953950,1735423843894,-500.0,0.00017679,2]
[346953951,1735423843904,-500.0,0.00017679,2]
[346953952,1735423843915,-500.0,0.00017679,2]
[346953953,1735423843926,-500.0,0.00017679,2]
[346953954,1735423843942,-500.0,0.00017679,2]
[346953955,1735423843952,-500.0,0.00017679,2]
[346953956,1735423843963,-500.0,0.00017679,2]
[346953957,1735423843973,-500.0,0.00017679,2]
[346953958,1735423843984,-500.0,0.00017679,2]
[346953959,1735423843995,-500.0,0.00017679,2]
[346953960,1735423844006,-500.0,0.00017679,2]
[346953961,1735423844017,-500.0,0.00017679,2]
[346953962,1735423844028,-500.0,0.00017679,2]
[346953963,1735423844038,-546.69901243,0.00017679,2]
[346953964,1735423844049,-500.0,0.00017679,2]
[346953965,1735423844060,-500.0,0.00017679,2]
[346953966,1735423844071,-500.0,0.00017679,2]
[346953967,1735423844082,-500.0,0.00017679,2]
[346953968,1735423844092,-500.0,0.00017679,2]
[346953969,1735423844103,-500.0,0.00017679,2]
[346953970,1735423844114,-500.0,0.00017679,2]
[346953971,1735423844125,-500.0,0.00017679,2]
[346953972,1735423844136,-500.0,0.00017679,2]
[346953973,1735423844146,-500.0,0.00017679,2]
[346953974,1735423844157,-500.0,0.00017679,2]
[346953975,1735423844168,-181.81290131,0.00017679,2]
[346953976,1735423844179,-500.0,0.00017679,2]
[346953977,1735423844189,-500.0,0.00017679,2]
[346953978,1735423844200,-500.0,0.00017679,2]
[346953979,1735423844211,-544.71915857,0.00017679,2]
[346953980,1735423844221,-500.0,0.00017679,2]
[346953981,1735423844232,-500.0,0.00017679,2]
[346953982,1735423844242,-500.0,0.00017679,2]
[346953983,1735423844253,-500.0,0.00017679,2]
[346953984,1735423844264,-500.0,0.00017679,2]
[346953985,1735423844275,-500.0,0.00017679,2]
[346953986,1735423844286,-500.0,0.00017679,2]
[346953987,1735423844297,-1093.19,0.00017679,2]
[346953988,1735423844309,-500.0,0.00017679,2]
[346953989,1735423844428,-500.0,0.00017679,2]
[346953990,1735423844440,-500.0,0.00017679,2]
[346953991,1735423844449,-500.0,0.00017679,2]
[346953992,1735423844459,-500.0,0.00017679,2]
[346953993,1735423844468,-500.0,0.00017679,2]
[346953994,1735423844478,-500.0,0.00017679,2]
[346953995,1735423844487,-500.0,0.00017679,2]
[346953996,1735423844497,-500.0,0.00017681,2]
[346953997,1735423844506,-500.0,0.00017681,2]
[346953998,1735423844516,-500.0,0.00017681,2]
[346953999,1735423844526,-500.0,0.00017681,2]
[346954000,1735423844535,-500.0,0.00017681,2]
[346954001,1735423844545,-500.0,0.00017682,2]
[346954002,1735423844554,-500.0,0.00017682,2]
[346954003,1735423844564,-521.26735195,0.00017682,2]
[346954004,1735423844573,-500.0,0.00017684,2]
[346954005,1735423844582,-500.0,0.00017684,2]
[346954006,1735423844591,-500.0,0.00017684,2]
[346954007,1735423844601,-500.0,0.00017684,2]
[346954008,1735423844611,-500.0,0.00017684,2]
[346954009,1735423844620,-500.0,0.00017684,2]
[346954010,1735423844629,-500.0,0.00017684,2]
[346954011,1735423844639,-500.0,0.00017684,2]
[346954012,1735423844648,-500.0,0.00017684,2]
[346954013,1735423844657,-500.0,0.00017684,2]
[346954014,1735423844666,-500.0,0.00017684,2]
[346954015,1735423844676,-500.0,0.00017684,2]
[346954016,1735423844685,-500.0,0.00017684,2]
[346954017,1735423844694,-500.0,0.00017684,2]
[346954018,1735423844704,-500.0,0.00017684,2]
[346954019,1735423844713,-500.0,0.00017686,2]
[346954020,1735423844723,-500.0,0.00017686,2]
[346954021,1735423844732,-500.0,0.00017686,2]
[346954022,1735423844741,-500.0,0.00017686,2]
[346954023,1735423844751,-500.0,0.00017686,2]
[346954024,1735423844761,-500.0,0.00017686,2]
[346954025,1735423844770,-150.14290225,0.00017686,2]
[346954026,1735423844780,-500.0,0.00017686,2]
[346954027,1735423844789,-500.0,0.00017686,2]
[346954028,1735423844798,-500.0,0.00017686,2]
[346954029,1735423844807,-500.0,0.00017686,2]
[346954030,1735423844817,-500.0,0.00017686,2]
[346954031,1735423844827,-240.4097196,0.00017686,2]
[346954032,1735423844836,-500.0,0.00017686,2]
[346954033,1735423844846,-500.0,0.00017686,2]
[346954034,1735423844856,-500.0,0.00017686,2]
[346954035,1735423844866,-500.0,0.00017686,2]
[346954036,1735423844875,-500.0,0.00017686,2]
[346954037,1735423844885,-500.0,0.00017686,2]
[346954038,1735423844895,-500.0,0.00017686,2]
[346954039,1735423844904,-500.0,0.00017686,2]
[346954040,1735423844913,-500.0,0.00017686,2]
[346954041,1735423844924,-500.0,0.00017686,2]
[346954042,1735423844936,-500.0,0.00017686,2]
[346954043,1735423844946,-3006.33,0.00017686,2]
[346954044,1735423844956,-500.0,0.00017686,2]
[346954045,1735423844966,-500.0,0.00017689,2]
[346954046,1735423844975,-500.0,0.00017689,2]
[346954047,1735423844987,-500.0,0.00017689,2]
[346954048,1735423844996,-500.0,0.00017689,2]
[346954049,1735423845006,-468.83388723,0.00017852,2]
[346954050,1735423845016,-203.04848889,0.00017948,2]
[346954051,1735423845028,-500.0,0.00017949,2]
[346954052,1735423845038,-715.73,0.00017949,2]
[346954053,1735423845048,-500.0,0.00017949,2]
[346954054,1735423845057,-500.0,0.00017949,2]
[346954055,1735423845067,-500.0,0.00017949,2]
[346954056,1735423845077,-500.0,0.00017949,2]
[346954057,1735423845087,-500.0,0.00017949,2]
[346954058,1735423845096,-500.0,0.00017949,2]
[346954059,1735423845106,-1733.68,0.00017949,2]
[346954060,1735423845115,-500.0,0.00017949,2]
[346954061,1735423845125,-500.0,0.00017949,2]
[346954062,1735423845135,-641.01,0.0001795,2]
[346954063,1735423845144,-500.0,0.0001795,2]
[346954064,1735423845153,-500.0,0.0001795,2]
[346954065,1735423845163,-500.0,0.0001795,2]
[346954066,1735423845172,-500.0,0.0001795,2]
[346954067,1735423845182,-500.0,0.0001795,2]
[346954068,1735423845194,-500.0,0.0001795,2]
[346954069,1735423845204,-752.02,0.0001795,2]
[346954070,1735423845213,-500.0,0.0001795,2]
[346954071,1735423845222,-500.0,0.0001795,2]
[346954072,1735423845232,-500.0,0.0001795,2]
[346954073,1735423845241,-500.0,0.0001795,2]
[346954074,1735423845250,-500.0,0.0001795,2]
[346954075,1735423845260,-500.0,0.0001795,2]
[346954076,1735423845269,-500.0,0.0001795,2]
[346954077,1735423845278,-500.0,0.0001795,2]
[346954078,1735423845287,-500.0,0.0001795,2]
[346954079,1735423845297,-500.0,0.0001795,2]
[346954080,1735423845306,-500.0,0.0001795,2]
[346954081,1735423845315,-500.0,0.0001795,2]
[346954082,1735423845324,-500.0,0.0001795,2]
[346954083,1735423845334,-500.0,0.0001795,2]
[346954084,1735423845343,-500.0,0.0001795,2]
[346954085,1735423845352,-12138.83,0.0001795,2]
[346954086,1735423845362,-500.0,0.00017952,2]
[346954087,1735423845371,-500.0,0.00017952,2]
[346954089,1735423845380,-500.0,0.00017952,2]
[346954091,1735423845389,-500.0,0.00017952,2]
[346954093,1735423845398,-500.0,0.00017952,2]
[346954095,1735423845407,-500.0,0.00017952,2]
[346954097,1735423845417,-340.0,0.00017952,2]
[346954098,1735423845426,-500.0,0.00017952,2]
[346954099,1735423845435,-500.0,0.00017952,2]
[346954100,1735423845444,-500.0,0.00017952,2]
[346954101,1735423845454,-500.0,0.00017952,2]
[346954102,1735423845463,-500.0,0.00017952,2]
[346954103,1735423845473,-500.0,0.00017952,2]
[346954104,1735423845482,-500.0,0.00017952,2]
[346954105,1735423845491,-500.0,0.00017952,2]
[346954106,1735423845501,-500.0,0.00017952,2]
[346954107,1735423845511,-500.0,0.00017952,2]
[346954108,1735423845520,-500.0,0.00017952,2]
[346954109,1735423845530,-500.0,0.00017952,2]
[346954110,1735423845539,-500.0,0.00017952,2]
[346954111,1735423845548,-500.0,0.00017952,2]
[346954112,1735423845557,-500.0,0.00017952,2]
[346954113,1735423845566,-500.0,0.00017952,2]
[346954114,1735423845576,-500.0,0.00017952,2]
[346954115,1735423845586,-500.0,0.00017952,2]
[346954116,1735423845595,-500.0,0.00017952,2]
[346954118,1735423845604,-500.0,0.00017952,2]
[346954120,1735423845614,-500.0,0.00017952,2]
[346954121,1735423845623,-500.0,0.00017952,2]
[346954122,1735423845632,-500.0,0.00017952,2]
[346954123,1735423845641,-504.60957961,0.00017952,2]
[346954124,1735423845651,-500.0,0.00017952,2]
[346954125,1735423845661,-500.0,0.00017952,2]
[346954126,1735423845670,-500.0,0.00017952,2]
[346954128,1735423845679,-500.0,0.00017952,2]
[346954129,1735423845689,-500.0,0.00017952,2]
[346954130,1735423845698,-500.0,0.00017952,2]
[346954131,1735423845707,-500.0,0.00017952,2]
[346954132,1735423845717,-500.0,0.00017952,2]
[346954133,1735423845727,-500.0,0.00017952,2]
[346954134,1735423845736,-500.0,0.00017952,2]
[346954135,1735423845746,-500.0,0.00017952,2]
[346954136,1735423845755,-10047.38,0.00017952,2]
[346954137,1735423845764,-500.0,0.00017952,2]